[Event "Early-Titled-Tuesday-Blitz-May-14-2024"]
[Site "Chess.com"]
[Date "2024.05.14"]
[Round "7"]
[White "azikom"]
[Black "ivana_999"]
[Result "1-0"]
[WhiteElo "2702"]
[BlackElo "1870"]
[TimeControl "180+1"]
[EndTime "9:20:38 PDT"]
[Termination "azikom won by resignation"]

1. c4 {[%clk 0:03:00.4]} 1... e5 {[%clk 0:02:59.8]} 2. e3 {[%clk 0:02:59.8]}
2... Nf6 {[%clk 0:02:59.5]} 3. a3 {[%clk 0:02:59.4]} 3... c6 {[%clk 0:02:59.5]}
4. Nf3 {[%clk 0:02:57.4]} 4... e4 {[%clk 0:02:58.3]} 5. Nd4 {[%clk 0:02:57.3]}
5... d5 {[%clk 0:02:58.8]} 6. cxd5 {[%clk 0:02:56.6]} 6... cxd5 {[%clk
0:02:59.7]} 7. b4 {[%clk 0:02:57.2]} 7... Bd6 {[%clk 0:02:54.1]} 8. Bb2 {[%clk
0:02:56.9]} 8... O-O {[%clk 0:02:53.7]} 9. Be2 {[%clk 0:02:53.3]} 9... Nc6
{[%clk 0:02:54]} 10. d3 {[%clk 0:02:50.3]} 10... Nxd4 {[%clk 0:02:43.3]} 11.
Bxd4 {[%clk 0:02:49.7]} 11... Qe7 {[%clk 0:02:43.7]} 12. Nc3 {[%clk 0:02:45.2]}
12... Be5 {[%clk 0:02:41]} 13. Bxe5 {[%clk 0:02:44]} 13... Qxe5 {[%clk
0:02:40.7]} 14. d4 {[%clk 0:02:43.9]} 14... Qg5 {[%clk 0:02:40.3]} 15. g3 {[%clk
0:02:44.1]} 15... Bh3 {[%clk 0:02:39.3]} 16. Qb3 {[%clk 0:02:42.7]} 16... Rac8
{[%clk 0:02:27.5]} 17. Rc1 {[%clk 0:02:41.7]} 17... Rc6 {[%clk 0:02:22.4]} 18.
Na2 {[%clk 0:02:39.9]} 18... Rxc1+ {[%clk 0:02:21.7]} 19. Nxc1 {[%clk
0:02:39.5]} 19... Rc8 {[%clk 0:02:19.3]} 20. Qb2 {[%clk 0:02:39.2]} 20... Qf5
{[%clk 0:02:12.6]} 21. Nb3 {[%clk 0:02:31.3]} 21... Bg2 {[%clk 0:02:11.6]} 22.
Rg1 {[%clk 0:02:30.2]} 22... Bf3 {[%clk 0:02:11.8]} 23. Bf1 {[%clk 0:02:02.5]}
23... Bg4 {[%clk 0:01:56.7]} 24. Nd2 {[%clk 0:01:53.4]} 24... Qd7 {[%clk
0:01:54.7]} 25. Nb3 {[%clk 0:01:42.7]} 25... Qc7 {[%clk 0:01:53.9]} 26. h3
{[%clk 0:01:39.6]} 26... Bf3 {[%clk 0:01:53.2]} 27. Kd2 {[%clk 0:01:35.7]} 27...
Nd7 {[%clk 0:01:42.2]} 28. Bb5 {[%clk 0:01:27]} 28... Nb6 {[%clk 0:01:41.3]} 29.
Rc1 {[%clk 0:01:26.2]} 29... Nc4+ {[%clk 0:01:17.1]} 30. Bxc4 {[%clk 0:01:25.1]}
30... dxc4 {[%clk 0:01:18]} 31. Nc5 {[%clk 0:01:11.3]} 31... b6 {[%clk
0:01:14.3]} 32. Na6 {[%clk 0:01:04.1]} 32... Qb7 {[%clk 0:01:09.3]} 33. b5
{[%clk 0:01:03.3]} 33... Qd5 {[%clk 0:01:09.1]} 34. a4 {[%clk 0:00:56.7]} 34...
Bg2 {[%clk 0:01:05]} 35. h4 {[%clk 0:00:55.8]} 35... Qf5 {[%clk 0:01:04.6]} 36.
Kc3 {[%clk 0:00:55.4]} 36... Bf3 {[%clk 0:00:30.2]} 37. Nb4 {[%clk 0:00:54.3]}
37... Qd7 {[%clk 0:00:21.9]} 38. Nc6 {[%clk 0:00:49.3]} 38... Bg4 {[%clk
0:00:11.1]} 39. Qb4 {[%clk 0:00:48.1]} 39... Be6 {[%clk 0:00:10.7]} 40. Ne7+
{[%clk 0:00:40.8]} 40... Kh8 {[%clk 0:00:10.5]} 41. Nxc8 {[%clk 0:00:41.1]}
41... Qxc8 {[%clk 0:00:11.4]} 42. Qe7 {[%clk 0:00:40.4]} 42... h5 {[%clk
0:00:07.8]} 43. Qxa7 {[%clk 0:00:26.2]} 43... Qf8 {[%clk 0:00:08.2]} 44. Ra1
{[%clk 0:00:25.7]} 44... Qd6 {[%clk 0:00:03.5]} 45. Qa8+ {[%clk 0:00:25.5]}
45... Kh7 {[%clk 0:00:03.5]} 46. Qxe4+ {[%clk 0:00:26.1]} 46... g6 {[%clk
0:00:04.3]} 47. Qe5 {[%clk 0:00:21.1]} 47... Qd7 {[%clk 0:00:02.7]} 48. e4
{[%clk 0:00:20.1]} 48... Qd8 {[%clk 0:00:02.2]} 49. d5 {[%clk 0:00:19.4]} 49...
Qc8 {[%clk 0:00:01.9]} 50. d6 {[%clk 0:00:18.8]} 50... Qc5 {[%clk 0:00:02.3]}
51. Qxc5 {[%clk 0:00:17.4]} 51... bxc5 {[%clk 0:00:02.6]} 52. a5 {[%clk
0:00:17.8]} 52... Bd7 {[%clk 0:00:02.8]} 53. b6 {[%clk 0:00:17.6]} 53... Bc6
{[%clk 0:00:03.5]} 54. a6 {[%clk 0:00:18.1]} 1-0

[Event "Early-Titled-Tuesday-Blitz-May-14-2024"]
[Site "Chess.com"]
[Date "2024.05.14"]
[Round "7"]
[White "twitchTriniCupid"]
[Black "NMChessToImpress"]
[Result "1-0"]
[WhiteElo "2415"]
[BlackElo "2263"]
[TimeControl "180+1"]
[EndTime "9:20:39 PDT"]
[Termination "twitchTriniCupid won by resignation"]

1. d4 {[%clk 0:01:33.6]} 1... e6 {[%clk 0:02:37.3]} 2. Nf3 {[%clk 0:01:33.8]}
2... Nf6 {[%clk 0:02:37.3]} 3. e3 {[%clk 0:01:34.4]} 3... c5 {[%clk 0:02:37.2]}
4. b3 {[%clk 0:01:35]} 4... Be7 {[%clk 0:02:36.6]} 5. Bb2 {[%clk 0:01:35.5]}
5... b6 {[%clk 0:02:37.2]} 6. Nbd2 {[%clk 0:01:35.5]} 6... Bb7 {[%clk
0:02:37.3]} 7. Bd3 {[%clk 0:01:35.9]} 7... O-O {[%clk 0:02:37.2]} 8. O-O {[%clk
0:01:36.5]} 8... cxd4 {[%clk 0:02:35.8]} 9. exd4 {[%clk 0:01:36.4]} 9... a6
{[%clk 0:02:34.7]} 10. Qe2 {[%clk 0:01:36.4]} 10... b5 {[%clk 0:02:34]} 11. a4
{[%clk 0:01:33.2]} 11... bxa4 {[%clk 0:02:30.6]} 12. Rxa4 {[%clk 0:01:32.9]}
12... d6 {[%clk 0:02:26.9]} 13. Rfa1 {[%clk 0:01:32.5]} 13... Nfd7 {[%clk
0:02:25]} 14. Be4 {[%clk 0:01:28.6]} 14... Bxe4 {[%clk 0:02:15.9]} 15. Qxe4
{[%clk 0:01:28.1]} 15... d5 {[%clk 0:02:16.3]} 16. Qd3 {[%clk 0:01:26.2]} 16...
Nb6 {[%clk 0:02:15.3]} 17. Ra5 {[%clk 0:01:24.8]} 17... Nc6 {[%clk 0:01:44.4]}
18. Rxa6 {[%clk 0:01:23.8]} 18... Rxa6 {[%clk 0:01:36.1]} 19. Qxa6 {[%clk
0:01:23.2]} 19... Nb4 {[%clk 0:01:36.2]} 20. Qb5 {[%clk 0:01:23.3]} 20... Nxc2
{[%clk 0:01:33.6]} 21. Ra6 {[%clk 0:01:22]} 21... Na8 {[%clk 0:01:25.3]} 22. Ra7
{[%clk 0:01:19.4]} 22... Bd6 {[%clk 0:01:05.3]} 23. Qc6 {[%clk 0:01:11.2]} 23...
Nb4 {[%clk 0:00:57.8]} 24. Qb7 {[%clk 0:01:10]} 24... Qb8 {[%clk 0:00:51.3]} 25.
Ba3 {[%clk 0:01:05.2]} 25... Nb6 {[%clk 0:00:13.6]} 26. Ne5 {[%clk 0:00:54.2]}
26... Nc8 {[%clk 0:00:11.2]} 27. Qxb8 {[%clk 0:00:37.5]} 27... Bxb8 {[%clk
0:00:11.2]} 28. Rb7 {[%clk 0:00:25.5]} 28... Bxe5 {[%clk 0:00:08]} 29. dxe5
{[%clk 0:00:15.9]} 29... Nc6 {[%clk 0:00:08.4]} 30. Bxf8 {[%clk 0:00:15.2]}
30... Kxf8 {[%clk 0:00:08.4]} 31. f4 {[%clk 0:00:15.4]} 31... Ke8 {[%clk
0:00:07.7]} 32. Nf3 {[%clk 0:00:15.7]} 32... N8e7 {[%clk 0:00:06.8]} 33. Kf2
{[%clk 0:00:15.8]} 33... Kd8 {[%clk 0:00:06.5]} 34. Rb5 {[%clk 0:00:12.5]} 34...
Kc7 {[%clk 0:00:06.6]} 35. Rc5 {[%clk 0:00:12.7]} 35... Kb6 {[%clk 0:00:06.5]}
36. Rc1 {[%clk 0:00:12]} 36... Nf5 {[%clk 0:00:06.3]} 37. g4 {[%clk 0:00:12.2]}
37... Nfd4 {[%clk 0:00:06.4]} 38. Nxd4 {[%clk 0:00:12.7]} 38... Nxd4 {[%clk
0:00:07.3]} 39. Rc3 {[%clk 0:00:09.4]} 39... Kb5 {[%clk 0:00:07.2]} 40. Ke3
{[%clk 0:00:09.8]} 40... Nc6 {[%clk 0:00:06.5]} 41. Kd3 {[%clk 0:00:09.6]} 41...
Nb4+ {[%clk 0:00:06.3]} 42. Kd4 {[%clk 0:00:08.6]} 42... Nc6+ {[%clk 0:00:06.4]}
43. Kd3 {[%clk 0:00:06.9]} 43... Nb4+ {[%clk 0:00:06.4]} 44. Kd2 {[%clk
0:00:07.1]} 44... Nc6 {[%clk 0:00:06.1]} 45. Rh3 {[%clk 0:00:05.7]} 45... h6
{[%clk 0:00:05.6]} 46. Kc3 {[%clk 0:00:05.9]} 46... d4+ {[%clk 0:00:05.4]} 47.
Kd3 {[%clk 0:00:05.6]} 47... Kc5 {[%clk 0:00:05.8]} 48. Ke4 {[%clk 0:00:05]}
48... Nb4 {[%clk 0:00:04.6]} 49. f5 {[%clk 0:00:05]} 49... d3 {[%clk 0:00:04.5]}
50. Rxd3 {[%clk 0:00:04.3]} 50... Nxd3 {[%clk 0:00:04.4]} 51. Kxd3 {[%clk
0:00:05.2]} 51... Kd5 {[%clk 0:00:04.9]} 52. fxe6 {[%clk 0:00:05.2]} 52... fxe6
{[%clk 0:00:04.9]} 53. b4 {[%clk 0:00:05.3]} 53... Kxe5 {[%clk 0:00:05.2]} 54.
Kc4 {[%clk 0:00:05.9]} 54... Kd6 {[%clk 0:00:05.2]} 55. Kd4 {[%clk 0:00:06.5]}
55... Kc6 {[%clk 0:00:05.3]} 56. Ke5 {[%clk 0:00:06.8]} 56... Kb5 {[%clk
0:00:04.4]} 57. Kxe6 {[%clk 0:00:07.3]} 57... Kxb4 {[%clk 0:00:05.3]} 58. Kf7
{[%clk 0:00:07.6]} 58... g5 {[%clk 0:00:04.4]} 59. Kg6 {[%clk 0:00:08]} 59...
Kc4 {[%clk 0:00:05.2]} 60. Kxh6 {[%clk 0:00:08.3]} 60... Kd4 {[%clk 0:00:06.1]}
61. Kxg5 {[%clk 0:00:08.7]} 61... Ke4 {[%clk 0:00:06.6]} 62. h4 {[%clk
0:00:08.8]} 1-0

[Event "Early-Titled-Tuesday-Blitz-May-14-2024"]
[Site "Chess.com"]
[Date "2024.05.14"]
[Round "7"]
[White "wild3000"]
[Black "NikitaShnadrygin"]
[Result "0-1"]
[WhiteElo "2518"]
[BlackElo "2741"]
[TimeControl "180+1"]
[EndTime "9:20:40 PDT"]
[Termination "NikitaShnadrygin won on time"]

1. d4 {[%clk 0:02:37.8]} 1... d5 {[%clk 0:02:59.6]} 2. Nf3 {[%clk 0:02:37.9]}
2... Nc6 {[%clk 0:03:00.2]} 3. e3 {[%clk 0:02:36.1]} 3... Bg4 {[%clk 0:03:00.4]}
4. Be2 {[%clk 0:02:36.4]} 4... e6 {[%clk 0:02:59.8]} 5. O-O {[%clk 0:02:36.4]}
5... Nf6 {[%clk 0:02:59.3]} 6. b3 {[%clk 0:02:36.5]} 6... Be7 {[%clk 0:02:53.9]}
7. Bb2 {[%clk 0:02:36.5]} 7... O-O {[%clk 0:02:54.6]} 8. Nbd2 {[%clk 0:02:32.4]}
8... a5 {[%clk 0:02:54.4]} 9. a3 {[%clk 0:02:32.3]} 9... Nb8 {[%clk 0:02:50.1]}
10. c4 {[%clk 0:02:27.1]} 10... c6 {[%clk 0:02:49.9]} 11. Ne5 {[%clk 0:02:24.7]}
11... Bxe2 {[%clk 0:02:45.9]} 12. Qxe2 {[%clk 0:02:25.6]} 12... Nbd7 {[%clk
0:02:45.2]} 13. f4 {[%clk 0:02:16.8]} 13... c5 {[%clk 0:01:56]} 14. Ndf3 {[%clk
0:02:03.8]} 14... a4 {[%clk 0:01:50.6]} 15. cxd5 {[%clk 0:02:00.5]} 15... exd5
{[%clk 0:01:46.7]} 16. Qb5 {[%clk 0:01:45.6]} 16... axb3 {[%clk 0:01:39.5]} 17.
dxc5 {[%clk 0:01:34.4]} 17... Nxc5 {[%clk 0:01:27.1]} 18. Bd4 {[%clk 0:01:34.1]}
18... Qa5 {[%clk 0:01:20.2]} 19. Qb4 {[%clk 0:01:11.6]} 19... Nfe4 {[%clk
0:00:56.5]} 20. Rfb1 {[%clk 0:00:44.6]} 20... f6 {[%clk 0:00:53.4]} 21. Ng4
{[%clk 0:00:38]} 21... Rfe8 {[%clk 0:00:38.2]} 22. Nf2 {[%clk 0:00:36.7]} 22...
Nxf2 {[%clk 0:00:37.5]} 23. Qxa5 {[%clk 0:00:35.8]} 23... Rxa5 {[%clk
0:00:34.2]} 24. Kxf2 {[%clk 0:00:35.9]} 24... Rea8 {[%clk 0:00:25]} 25. Nd2
{[%clk 0:00:23.4]} 25... Rxa3 {[%clk 0:00:20.9]} 26. Rxa3 {[%clk 0:00:22.4]}
26... Rxa3 {[%clk 0:00:21.8]} 27. Kf3 {[%clk 0:00:20.5]} 27... Kf7 {[%clk
0:00:18.6]} 28. Bxc5 {[%clk 0:00:20.6]} 28... Bxc5 {[%clk 0:00:19.5]} 29. Rxb3
{[%clk 0:00:21.5]} 29... Rxb3 {[%clk 0:00:19.5]} 30. Nxb3 {[%clk 0:00:22.4]}
30... Bb6 {[%clk 0:00:20.4]} 31. e4 {[%clk 0:00:21.3]} 31... Ke6 {[%clk
0:00:19.7]} 32. exd5+ {[%clk 0:00:20.5]} 32... Kxd5 {[%clk 0:00:20.1]} 33. h4
{[%clk 0:00:20.3]} 33... f5 {[%clk 0:00:19.6]} 34. h5 {[%clk 0:00:20.2]} 34...
g6 {[%clk 0:00:19.3]} 35. hxg6 {[%clk 0:00:20]} 35... hxg6 {[%clk 0:00:20.2]}
36. g4 {[%clk 0:00:20.9]} 36... Bd4 {[%clk 0:00:19.2]} 37. gxf5 {[%clk
0:00:17.9]} 37... gxf5 {[%clk 0:00:20.1]} 38. Ke2 {[%clk 0:00:15]} 38... Ke4
{[%clk 0:00:19.3]} 39. Nd2+ {[%clk 0:00:15.2]} 39... Kxf4 {[%clk 0:00:18.8]} 40.
Kd3 {[%clk 0:00:16.1]} 40... Bg1 {[%clk 0:00:17.8]} 41. Ke2 {[%clk 0:00:12.2]}
41... Kg3 {[%clk 0:00:12.4]} 42. Nf3 {[%clk 0:00:11.4]} 42... Bc5 {[%clk
0:00:11]} 43. Ne5 {[%clk 0:00:08.8]} 43... f4 {[%clk 0:00:10.2]} 44. Nf3 {[%clk
0:00:09]} 44... b5 {[%clk 0:00:09.5]} 45. Ng5 {[%clk 0:00:08]} 45... Kg2 {[%clk
0:00:06.8]} 46. Nf3 {[%clk 0:00:03.7]} 46... b4 {[%clk 0:00:06.5]} 47. Ne1+
{[%clk 0:00:04]} 47... Kg3 {[%clk 0:00:06.2]} 48. Nd3 {[%clk 0:00:04.1]} 48...
f3+ {[%clk 0:00:06]} 49. Kf1 {[%clk 0:00:04.3]} 49... Bd6 {[%clk 0:00:06.2]} 50.
Nc1 {[%clk 0:00:04.3]} 50... Bf4 {[%clk 0:00:04.3]} 51. Nb3 {[%clk 0:00:02.3]}
51... Be5 {[%clk 0:00:04.9]} 52. Nc5 {[%clk 0:00:01.8]} 52... Bc3 {[%clk
0:00:05]} 0-1

[Event "Early-Titled-Tuesday-Blitz-May-14-2024"]
[Site "Chess.com"]
[Date "2024.05.14"]
[Round "7"]
[White "sergiochess83"]
[Black "Alonmindlin"]
[Result "1-0"]
[WhiteElo "2872"]
[BlackElo "2709"]
[TimeControl "180+1"]
[EndTime "9:20:41 PDT"]
[Termination "sergiochess83 won by resignation"]

1. d4 {[%clk 0:02:54.6]} 1... Nf6 {[%clk 0:02:59.7]} 2. c4 {[%clk 0:02:52.6]}
2... e6 {[%clk 0:03:00]} 3. Nc3 {[%clk 0:02:51.6]} 3... d5 {[%clk 0:02:59]} 4.
cxd5 {[%clk 0:02:44.3]} 4... exd5 {[%clk 0:02:59.9]} 5. Bg5 {[%clk 0:02:43.9]}
5... Be7 {[%clk 0:02:58.1]} 6. e3 {[%clk 0:02:43.8]} 6... Nbd7 {[%clk
0:02:58.2]} 7. Bd3 {[%clk 0:02:43.5]} 7... c6 {[%clk 0:02:58.4]} 8. Nge2 {[%clk
0:02:42.9]} 8... O-O {[%clk 0:02:58.8]} 9. Qc2 {[%clk 0:02:40.1]} 9... Re8
{[%clk 0:02:59]} 10. h3 {[%clk 0:02:39.2]} 10... g6 {[%clk 0:02:59.2]} 11. O-O-O
{[%clk 0:02:26.2]} 11... b5 {[%clk 0:02:56.3]} 12. Kb1 {[%clk 0:02:25.4]} 12...
a5 {[%clk 0:02:56.2]} 13. g4 {[%clk 0:02:23.4]} 13... Nb6 {[%clk 0:02:37.7]} 14.
Nf4 {[%clk 0:02:22.7]} 14... Nc4 {[%clk 0:02:33.4]} 15. Bxc4 {[%clk 0:02:15.7]}
15... bxc4 {[%clk 0:02:33.6]} 16. f3 {[%clk 0:02:15.6]} 16... Rb8 {[%clk
0:02:32.3]} 17. Ka1 {[%clk 0:02:15.2]} 17... a4 {[%clk 0:02:01.1]} 18. Nxa4
{[%clk 0:02:12.1]} 18... Qa5 {[%clk 0:01:59.4]} 19. Nc3 {[%clk 0:02:03.9]} 19...
Bd7 {[%clk 0:01:53.8]} 20. Rh2 {[%clk 0:01:52.4]} 20... Nxg4 {[%clk 0:01:39.2]}
21. Bxe7 {[%clk 0:01:44.5]} 21... Nxe3 {[%clk 0:01:37.9]} 22. Qd2 {[%clk
0:01:00.7]} 22... Rxe7 {[%clk 0:01:37.9]} 23. Ncxd5 {[%clk 0:00:55.7]} 23...
Qxa2+ {[%clk 0:00:44.9]} 24. Kxa2 {[%clk 0:00:54.8]} 24... Ra8+ {[%clk
0:00:45.4]} 25. Kb1 {[%clk 0:00:47.1]} 25... Bf5+ {[%clk 0:00:44]} 26. Qd3
{[%clk 0:00:27.6]} 26... Rea7 {[%clk 0:00:26.4]} 27. Nxe3 {[%clk 0:00:06.9]}
27... cxd3 {[%clk 0:00:20.2]} 28. Kc1 {[%clk 0:00:07.1]} 28... Ra1+ {[%clk
0:00:09.6]} 29. Kd2 {[%clk 0:00:07.4]} 29... R1a2 {[%clk 0:00:10.5]} 30. Nxd3
{[%clk 0:00:06.7]} 30... Rb8 {[%clk 0:00:10.8]} 31. Nxf5 {[%clk 0:00:06.4]}
31... gxf5 {[%clk 0:00:11.7]} 32. Re2 {[%clk 0:00:06.5]} 32... Kf8 {[%clk
0:00:12.3]} 33. Rc1 {[%clk 0:00:06.9]} 33... Rb5 {[%clk 0:00:12.1]} 34. Rc5
{[%clk 0:00:06.7]} 34... Rb6 {[%clk 0:00:12.1]} 35. Rxf5 {[%clk 0:00:06.9]}
35... Rba6 {[%clk 0:00:12]} 36. Rc5 {[%clk 0:00:06.6]} 36... Ra1 {[%clk
0:00:12.2]} 37. Rc2 {[%clk 0:00:05.2]} 37... Rh1 {[%clk 0:00:12.2]} 38. Nf4
{[%clk 0:00:05.5]} 38... Raa1 {[%clk 0:00:12.2]} 39. Kc3 {[%clk 0:00:05.5]}
39... Rhf1 {[%clk 0:00:12]} 40. Re3 {[%clk 0:00:05.1]} 40... Ra4 {[%clk
0:00:10.9]} 41. b3 {[%clk 0:00:05.2]} 41... Ra6 {[%clk 0:00:10.6]} 42. Nd3
{[%clk 0:00:05.5]} 42... Ra5 {[%clk 0:00:10.8]} 43. Ne5 {[%clk 0:00:05.4]} 43...
c5 {[%clk 0:00:10.1]} 44. Nd7+ {[%clk 0:00:05.7]} 44... Kg7 {[%clk 0:00:10.1]}
45. Nxc5 {[%clk 0:00:06.6]} 45... Ra7 {[%clk 0:00:06.8]} 46. Rg2+ {[%clk
0:00:06.6]} 46... Kh6 {[%clk 0:00:06.5]} 47. Nd3 {[%clk 0:00:06.1]} 47... Rc7+
{[%clk 0:00:06.3]} 48. Nc5 {[%clk 0:00:06.4]} 48... Rc1+ {[%clk 0:00:06]} 49.
Rc2 {[%clk 0:00:06.6]} 49... Rf1 {[%clk 0:00:06.1]} 50. Kc4 {[%clk 0:00:06.4]}
50... f5 {[%clk 0:00:06.1]} 51. Rd3 {[%clk 0:00:06.7]} 51... Kg5 {[%clk
0:00:06.5]} 52. d5 {[%clk 0:00:07.2]} 52... Kf4 {[%clk 0:00:06.9]} 53. d6 {[%clk
0:00:07.2]} 53... Rc8 {[%clk 0:00:05.4]} 54. d7 {[%clk 0:00:07.6]} 54... Rg8
{[%clk 0:00:05.8]} 55. d8=Q {[%clk 0:00:07.2]} 55... Rxd8 {[%clk 0:00:06.4]} 56.
Rxd8 {[%clk 0:00:07.4]} 56... Kxf3 {[%clk 0:00:06.7]} 57. Rd4 {[%clk 0:00:07.1]}
57... f4 {[%clk 0:00:06.4]} 1-0

[Event "Early-Titled-Tuesday-Blitz-May-14-2024"]
[Site "Chess.com"]
[Date "2024.05.14"]
[Round "7"]
[White "monomita"]
[Black "lilleper1"]
[Result "0-1"]
[WhiteElo "2761"]
[BlackElo "2924"]
[TimeControl "180+1"]
[EndTime "9:20:46 PDT"]
[Termination "lilleper1 won by checkmate"]

1. Nf3 {[%clk 0:03:00.9]} 1... Nf6 {[%clk 0:02:58.9]} 2. b3 {[%clk 0:03:00.8]}
2... c5 {[%clk 0:02:58.7]} 3. e3 {[%clk 0:02:59.6]} 3... g6 {[%clk 0:02:58.6]}
4. Bb2 {[%clk 0:02:59.9]} 4... Bg7 {[%clk 0:02:59.2]} 5. Nc3 {[%clk 0:03:00.4]}
5... O-O {[%clk 0:02:58.2]} 6. d4 {[%clk 0:02:59.5]} 6... cxd4 {[%clk 0:02:57]}
7. exd4 {[%clk 0:03:00.4]} 7... d5 {[%clk 0:02:55.8]} 8. h3 {[%clk 0:02:56.4]}
8... Nc6 {[%clk 0:02:55.5]} 9. Bd3 {[%clk 0:02:56]} 9... Bf5 {[%clk 0:02:50.2]}
10. Bxf5 {[%clk 0:02:54.3]} 10... gxf5 {[%clk 0:02:51.1]} 11. O-O {[%clk
0:02:55.2]} 11... Ne4 {[%clk 0:02:49.4]} 12. Ne2 {[%clk 0:02:51.8]} 12... Qd6
{[%clk 0:02:47.8]} 13. c3 {[%clk 0:02:52]} 13... Rac8 {[%clk 0:02:46.3]} 14. c4
{[%clk 0:02:46.6]} 14... Rfd8 {[%clk 0:02:35.8]} 15. c5 {[%clk 0:02:44.5]} 15...
Qc7 {[%clk 0:02:12]} 16. Bc1 {[%clk 0:02:28.1]} 16... b6 {[%clk 0:02:08.9]} 17.
Bf4 {[%clk 0:02:26.7]} 17... Qb7 {[%clk 0:02:09.3]} 18. cxb6 {[%clk 0:01:56.2]}
18... Qxb6 {[%clk 0:02:10.2]} 19. Rc1 {[%clk 0:01:48.9]} 19... Qa6 {[%clk
0:02:10.1]} 20. Ng3 {[%clk 0:01:48]} 20... Nxg3 {[%clk 0:02:06.1]} 21. fxg3
{[%clk 0:01:43.8]} 21... Qb6 {[%clk 0:01:47.9]} 22. Be3 {[%clk 0:01:43.5]} 22...
e6 {[%clk 0:01:30.7]} 23. g4 {[%clk 0:01:32.4]} 23... fxg4 {[%clk 0:01:26.8]}
24. hxg4 {[%clk 0:01:26.4]} 24... Rd7 {[%clk 0:01:19]} 25. Ng5 {[%clk
0:01:22.1]} 25... h6 {[%clk 0:01:03.2]} 26. Nf3 {[%clk 0:01:12.5]} 26... Rdc7
{[%clk 0:01:03.7]} 27. Kh1 {[%clk 0:00:41.5]} 27... Ne7 {[%clk 0:01:00.3]} 28.
Rxc7 {[%clk 0:00:36.5]} 28... Qxc7 {[%clk 0:01:01.2]} 29. Qd2 {[%clk 0:00:35.3]}
29... Qg3 {[%clk 0:00:46]} 30. Bxh6 {[%clk 0:00:29.7]} 30... Bxh6 {[%clk
0:00:43.6]} 31. Qxh6 {[%clk 0:00:28.4]} 31... Rc2 {[%clk 0:00:44.2]} 32. Qh3
{[%clk 0:00:19.4]} 32... Qxh3+ {[%clk 0:00:43.2]} 33. gxh3 {[%clk 0:00:20.3]}
33... Ng6 {[%clk 0:00:36.2]} 34. Ng5 {[%clk 0:00:19.5]} 34... Rc7 {[%clk
0:00:28.8]} 35. Rf2 {[%clk 0:00:19.4]} 35... Kg7 {[%clk 0:00:27.3]} 36. Kh2
{[%clk 0:00:19.3]} 36... Re7 {[%clk 0:00:27.2]} 37. Kg3 {[%clk 0:00:19.1]} 37...
f6 {[%clk 0:00:27.7]} 38. Nf3 {[%clk 0:00:17.8]} 38... e5 {[%clk 0:00:28.3]} 39.
Re2 {[%clk 0:00:14.6]} 39... e4 {[%clk 0:00:25.4]} 40. Nh4 {[%clk 0:00:14.6]}
40... Nxh4 {[%clk 0:00:25]} 41. Kxh4 {[%clk 0:00:15.5]} 41... Rc7 {[%clk
0:00:25.6]} 42. Re3 {[%clk 0:00:09.2]} 42... Rc2 {[%clk 0:00:23.9]} 43. a4
{[%clk 0:00:08.9]} 43... Rd2 {[%clk 0:00:24.2]} 44. Kg3 {[%clk 0:00:03.5]} 44...
Rxd4 {[%clk 0:00:23.8]} 45. Kf4 {[%clk 0:00:03.7]} 45... Rd1 {[%clk 0:00:24.1]}
46. Rc3 {[%clk 0:00:04]} 46... Kf7 {[%clk 0:00:18.8]} 47. h4 {[%clk 0:00:03.1]}
47... Rf1+ {[%clk 0:00:15.5]} 48. Ke3 {[%clk 0:00:03]} 48... Ke6 {[%clk
0:00:16.1]} 49. Ke2 {[%clk 0:00:01.8]} 49... Rh1 {[%clk 0:00:15.7]} 50. h5
{[%clk 0:00:01.8]} 50... Ke5 {[%clk 0:00:16.1]} 51. Rc8 {[%clk 0:00:01.6]} 51...
Rh2+ {[%clk 0:00:16.3]} 52. Kf1 {[%clk 0:00:01.6]} 52... d4 {[%clk 0:00:16.7]}
53. Rf8 {[%clk 0:00:02.1]} 53... d3 {[%clk 0:00:16.1]} 54. g5 {[%clk 0:00:01.8]}
54... e3 {[%clk 0:00:16.1]} 55. g6 {[%clk 0:00:01.5]} 55... e2+ {[%clk
0:00:16.5]} 56. Ke1 {[%clk 0:00:01.7]} 56... Rh1+ {[%clk 0:00:16.6]} 57. Kf2
{[%clk 0:00:02.3]} 57... e1=Q+ {[%clk 0:00:17.1]} 58. Kg2 {[%clk 0:00:03.2]}
58... Qf1+ {[%clk 0:00:17]} 59. Kg3 {[%clk 0:00:04.1]} 59... Rg1+ {[%clk
0:00:17.4]} 60. Kh2 {[%clk 0:00:04]} 60... Qg2# {[%clk 0:00:17.6]} 0-1